fUSD/lending_fUSD_20240714
["ID","MTS","AMOUNT","RATE_DAILY","PERIOD"]
[332122282,1720974639750,-500.0,0.00013751,2]
[332122284,1720974639761,-835.65,0.00013751,2]
[332122287,1720974639772,-500.0,0.00013751,2]
[332122289,1720974639782,-500.0,0.00013751,2]
[332122291,1720974639792,-500.0,0.00013751,2]
[332122293,1720974639803,-500.0,0.00013751,2]
[332122295,1720974639814,-546.17,0.00013751,2]
[332122297,1720974639824,-500.0,0.00013751,2]
[332122299,1720974639834,-500.0,0.00013751,2]
[332122301,1720974639843,-500.0,0.00013751,2]
[332122303,1720974639853,-500.0,0.00013751,2]
[332122305,1720974639862,-500.0,0.00013751,2]
[332122308,1720974639871,-500.0,0.00013751,2]
[332122310,1720974639880,-627.47499764,0.00013751,2]
[332122312,1720974639890,-500.0,0.00013751,2]
[332122314,1720974639901,-571.35,0.00013751,2]
[332122316,1720974639911,-1104.53,0.00013751,2]
[332122318,1720974639921,-726.21,0.00013751,2]
[332122320,1720974639931,-500.0,0.00013751,2]
[332122322,1720974639940,-499.999999,0.00013752,2]
[332122324,1720974639949,-500.0,0.00013752,2]
[332122326,1720974639958,-414.6,0.00013752,2]
[332122328,1720974639968,-500.0,0.00013752,2]
[332122330,1720974639977,-371.57888925,0.00013752,2]
[332122332,1720974639987,-500.0,0.00013752,2]
[332122334,1720974639996,-500.0,0.00013752,2]
[332122336,1720974640005,-500.0,0.00013752,2]
[332122338,1720974640015,-500.0,0.00013752,2]
[332122340,1720974640024,-500.0,0.00013752,2]
[332122342,1720974640034,-500.0,0.00013752,2]
[332122344,1720974640044,-500.0,0.00013752,2]
[332122345,1720974640053,-500.0,0.00013752,2]
[332122347,1720974640063,-500.0,0.00013752,2]
[332122350,1720974640072,-500.0,0.00013752,2]
[332122352,1720974640082,-500.0,0.00013752,2]
[332122355,1720974640092,-500.0,0.00013752,2]
[332122356,1720974640101,-500.0,0.00013752,2]
[332122358,1720974640110,-552.85,0.00013753,2]
[332122360,1720974640121,-150.166,0.00013753,2]
[332122363,1720974640134,-500.0,0.00013772,2]
[332122366,1720974640144,-500.0,0.00013772,2]
[332122369,1720974640153,-648.24140147,0.00013772,2]
[332122371,1720974640164,-500.0,0.00013772,2]
[332122373,1720974640173,-500.0,0.00013772,2]
[332122375,1720974640182,-500.0,0.00013772,2]
[332122377,1720974640192,-500.0,0.00013772,2]
[332122379,1720974640202,-500.0,0.00013772,2]
[332122381,1720974640211,-576.9,0.00013772,2]
[332122383,1720974640220,-500.0,0.00013772,2]
[332122385,1720974640230,-654.4,0.00013772,2]
[332122387,1720974640239,-500.0,0.00013772,2]
[332122389,1720974640248,-208.42,0.00013772,2]
[332122391,1720974640257,-500.0,0.00013772,2]
[332122393,1720974640266,-500.0,0.00013772,2]
[332122395,1720974640276,-500.0,0.00013772,2]
[332122397,1720974640284,-500.0,0.00013772,2]
[332122399,1720974640294,-500.0,0.00013772,2]
[332122401,1720974640303,-160.83,0.00013772,2]
[332122403,1720974640313,-500.0,0.00013772,2]
[332122405,1720974640322,-500.0,0.00013772,2]
[332122407,1720974640331,-500.0,0.00013772,2]
[332122409,1720974640340,-500.0,0.00013772,2]
[332122411,1720974640350,-500.0,0.00013772,2]
[332122413,1720974640359,-500.0,0.00013772,2]
[332122415,1720974640368,-500.0,0.00013772,2]
[332122417,1720974640377,-504.13,0.00013772,2]
[332122419,1720974640387,-561.49,0.00013772,2]
[332122421,1720974640396,-500.0,0.00013772,2]
[332122423,1720974640406,-500.0,0.00013772,2]
[332122425,1720974640415,-500.0,0.00013772,2]
[332122427,1720974640425,-500.0,0.00013772,2]
[332122429,1720974640434,-452.51954597,0.00013772,2]
[332122431,1720974640447,-47.48045403,0.00013772,2]
[332122433,1720974640456,-500.0,0.00013772,2]
[332122435,1720974640465,-217.72307389,0.00013772,2]
[332122438,1720974640482,-322.2737219,0.00013772,2]
[332122440,1720974640491,-247.62612607,0.00013772,2]
[332122896,1720974644786,-252.37387393,0.00013772,2]
[332122899,1720974644796,-261.62015561,0.00013772,2]
[332122901,1720974644808,-238.37984439,0.00013772,2]
[332122903,1720974644818,-500.0,0.00013772,2]
[332122905,1720974644828,-500.0,0.00013772,2]
[332122907,1720974644837,-500.0,0.00013772,2]
[332122909,1720974644846,-596.99,0.00013772,2]
[332122911,1720974644855,-500.0,0.00013772,2]
[332122913,1720974644865,-500.0,0.00013772,2]
[332122915,1720974644875,-500.0,0.00013772,2]
[332122917,1720974644884,-1075.94,0.00013772,2]
[332122919,1720974644893,-500.0,0.00013772,2]
[332122921,1720974644904,-465.41084553,0.00013772,2]
[332123118,1720974646525,-409.58460632,0.0001377,2]
[332123667,1720974656572,421.69,0.00010905,2]
[332123668,1720974726756,3217.16872116,0.00025,60]
[332123680,1720975166601,424.9,0.00010804,2]
[332123681,1720975201832,332.16494817,0.00010998,2]
[332123686,1720975296455,-465.08279601,0.00011098,2]
[332123687,1720975296477,-1405.16860756,0.00011098,2]
[332123688,1720975296499,-166.04615262,0.00011099,2]
[332123689,1720975296521,-1000.0,0.00011198,2]
[332123690,1720975296543,-300.0,0.00011198,2]
[332123691,1720975296565,-573.25,0.00011199,2]
[332123692,1720975296588,-18710.45244381,0.00011199,2]
[332123705,1720975356916,741.2735,0.00010942,2]
[332123763,1720975720686,452.39,0.00010453,2]
[332123794,1720975831617,-2749.077881,0.0001104,2]
[332123795,1720975831628,-300.0,0.00011096,2]
[332123796,1720975831638,-7620.76565404,0.00011097,2]
[332123797,1720975831651,-225.73748284,0.00011097,2]
[332123798,1720975831662,-285.98577903,0.00011098,2]
[332123799,1720975831673,-277.0112354,0.00011098,2]
[332123800,1720975831683,-1078.28995199,0.00011098,2]
[332123801,1720975831694,-148.02589575,0.00011098,2]
[332123802,1720975831835,-6.97410425,0.00011098,2]
[332123803,1720975831844,-796.61234671,0.00011098,2]
[332123804,1720975831855,-1269.26040965,0.00011098,2]
[332123805,1720975831866,-150.0,0.00011178,2]
[332123806,1720975831876,-1981.99189209,0.00011189,2]
[332123807,1720975831886,-150.0,0.00011198,2]
[332123808,1720975831896,-27755.16616929,0.00011199,2]
[332123810,1720975831908,-364.67036088,0.00011199,2]
[332123813,1720975831922,-6311.24858087,0.00011199,2]
[332123823,1720975837457,-498.35828287,0.00011199,2]
[332123824,1720975837468,-535.43603324,0.00011199,2]
[332123825,1720975837517,-552.62070963,0.00011199,2]
[332123826,1720975837532,-2033.01980657,0.00011199,2]
[332123827,1720975837578,-3073.63952024,0.00011199,2]
[332123828,1720975837588,-420.0,0.00012192,2]
[332123829,1720975837598,-292.54231197,0.00012314,2]
[332123830,1720975837608,-319.72,0.00012445,2]
[332123831,1720975837619,-870.87,0.0001253,2]
[332123832,1720975837628,-374.28204103,0.00012598,2]
[332123833,1720975837637,-169.86830857,0.000126,2]
[332123834,1720975837647,-887.36475713,0.0001267,2]
[332123835,1720975837656,-196.42,0.00012699,2]
[332123836,1720975837667,-452.39,0.00012717,2]
[332123837,1720975837678,-1000.0,0.00012803,2]
[332123838,1720975837687,-300.0,0.00012821,2]
[332123839,1720975837698,-150.69,0.00012821,2]
[332123840,1720975837708,-300.0,0.00012821,2]
[332123841,1720975837719,-849.7,0.00012821,2]
[332123842,1720975837729,-1058.14,0.00012821,2]
[332123843,1720975837740,-250.0,0.00012823,2]
[332123844,1720975837750,-155.21945676,0.00013128,2]
[332123845,1720975837759,-536.16233442,0.00013128,2]
[332123846,1720975837773,-587.0,0.00013396,2]
[332123847,1720975837784,-318.0,0.0001343,2]
[332123848,1720975837795,-437.62370046,0.00013451,2]
[332123849,1720975837806,-3855.36756942,0.00013451,2]
[332123850,1720975837820,-410.48576496,0.00013451,2]
[332123851,1720975837833,-871.49,0.00013451,2]
[332123852,1720975837851,-635.65521296,0.00013451,2]
[332123853,1720975837862,-155.43704552,0.000135,2]
[332123854,1720975837871,-654.52149739,0.00013543,2]
[332123855,1720975837881,-3074.04046079,0.00013552,2]
[332123856,1720975837891,-2662.81698348,0.00013552,2]
[332123857,1720975837968,-846.13581632,0.00013552,2]
[332123858,1720975837980,-974.17172246,0.00013552,2]
[332123859,1720975837994,-526.83501695,0.00013552,2]
[332123860,1720975838004,-259.1092,0.00013599,2]
[332123861,1720975838015,-1387.8048008,0.000136,2]
[332123862,1720975838025,-3271.78277745,0.000136,2]
[332123863,1720975838037,-4422.6263,0.00013697,2]
[332123864,1720975838047,-319.8838888,0.00013698,2]
[332123865,1720975838057,-740.91,0.00013699,2]
[332123866,1720975838068,-164.27,0.00013699,2]
[332123867,1720975838077,-250.0,0.00013699,2]
[332123868,1720975838086,-1000.0,0.00013706,2]
[332123869,1720975838096,-410.73,0.00013759,2]
[332123870,1720975838105,-150.0,0.00013759,2]
[332123871,1720975838115,-330.0,0.00013759,2]
[332123872,1720975838124,-150.0,0.00013759,2]
[332123874,1720975838133,-483.47,0.00013759,2]
[332123876,1720975838143,-709.94,0.00013759,2]
[332123878,1720975838152,-656.27215608,0.0001376,3]
[332123897,1720975839514,-215.21784392,0.0001376,3]
[332123898,1720975839524,-59.48429888,0.0001377,2]
[332123901,1720975839568,-1769.51570112,0.0001377,2]
[332123902,1720975839581,-1235.11,0.0001377,2]
[332123903,1720975839590,-875.973,0.0001377,2]
[332123904,1720975839600,-449.0,0.0001377,2]
[332123905,1720975839610,-210.415,0.0001377,2]
[332123906,1720975839621,-809.0,0.0001377,2]
[332123907,1720975839631,-2377.0,0.0001377,2]
[332123908,1720975839640,-1253.0,0.0001377,2]
[332123909,1720975839649,-1991.0,0.0001377,2]
[332123910,1720975839658,-3278.0,0.0001377,2]
[332123911,1720975839668,-558.196,0.0001377,2]
[332123912,1720975839677,-35493.04223136,0.0001377,2]
[332123913,1720975839700,-392.85540526,0.0001377,2]
[332123914,1720975839724,-2412.10236338,0.0001377,2]
[332123915,1720975839733,-879.2882903,0.0001377,2]
[332123916,1720975839745,-2430.53542353,0.0001377,2]
[332123917,1720975839756,-2061.24528617,0.0001377,2]
[332123918,1720975839766,-5183.0,0.0001377,2]
[332123919,1720975839776,-1666.0,0.0001377,2]
[332123920,1720975839785,-1069.0,0.0001377,2]
[332123921,1720975839794,-492.66,0.00013771,2]
[332123922,1720975839804,-492.66,0.00013771,2]
[332123923,1720975839813,-500.0,0.00013772,2]
[332123924,1720975839823,-500.0,0.00013772,2]
[332123925,1720975839832,-500.0,0.00013772,2]
[332123926,1720975839842,-500.0,0.00013772,2]
[332123927,1720975839851,-500.0,0.00013772,2]
[332123928,1720975839860,-500.0,0.00013772,2]
[332123929,1720975839872,-500.0,0.00013772,2]
[332123930,1720975839881,-500.0,0.00013772,2]
[332123931,1720975839890,-500.0,0.00013772,2]
[332123932,1720975839900,-500.0,0.00013772,2]
[332123933,1720975839911,-1164.03,0.00013772,2]
[332123934,1720975839920,-500.0,0.00013772,2]
[332123935,1720975839930,-500.0,0.00013772,2]
[332123936,1720975839939,-500.0,0.00013772,2]
[332123937,1720975839950,-650.58,0.00013772,2]
[332123938,1720975839959,-500.0,0.00013772,2]
[332123940,1720975839969,-500.0,0.00013772,2]
[332123942,1720975839979,-500.0,0.00013772,2]
[332123944,1720975839988,-500.0,0.00013772,2]
[332123946,1720975839998,-500.0,0.00013772,2]
[332123948,1720975840007,-317.9,0.00013772,2]
[332123950,1720975840016,-500.0,0.00013772,2]
[332123952,1720975840026,-500.0,0.00013772,2]
[332123954,1720975840035,-500.0,0.00013772,2]
[332123956,1720975840045,-292.11780263,0.00013772,2]
[332123958,1720975840054,-500.0,0.00013772,2]
[332123960,1720975840064,-500.0,0.00013772,2]
[332123962,1720975840073,-500.0,0.00013772,2]
[332123963,1720975840083,-377.61200955,0.00013772,2]
[332123964,1720975840092,-500.0,0.00013772,2]
[332123965,1720975840102,-500.0,0.00013772,2]
[332123966,1720975840111,-500.0,0.00013772,2]
[332123967,1720975840124,-500.0,0.00013772,2]
[332123968,1720975840133,-500.0,0.00013772,2]
[332123969,1720975840144,-500.0,0.00013772,2]
[332123970,1720975840159,-519.95,0.00013772,2]
[332123971,1720975840168,-500.0,0.00013772,2]
[332123972,1720975840177,-500.0,0.00013772,2]
[332123973,1720975840187,-500.0,0.00013772,2]
[332123974,1720975840197,-500.0,0.00013772,2]
[332123975,1720975840207,-500.0,0.00013772,2]
[332123976,1720975840217,-500.0,0.00013772,2]
[332123977,1720975840227,-500.0,0.00013772,2]
[332123978,1720975840237,-739.27,0.00013772,2]
[332123979,1720975840247,-500.0,0.00013772,2]
[332123980,1720975840256,-500.0,0.00013772,2]
[332123981,1720975840265,-500.0,0.00013772,2]
[332123982,1720975840275,-500.0,0.00013772,2]
[332123983,1720975840284,-741.43,0.00013772,2]
[332123984,1720975840294,-500.0,0.00013772,2]
[332123985,1720975840303,-500.0,0.00013772,2]
[332123986,1720975840313,-500.0,0.00013772,2]
[332123987,1720975840322,-348.07,0.00013772,2]
[332123988,1720975840332,-500.0,0.00013772,2]
[332123989,1720975840341,-500.0,0.00013772,2]
[332123990,1720975840350,-500.0,0.00013772,2]
[332123991,1720975840360,-500.0,0.00013772,2]
[332123992,1720975840373,-500.0,0.00013772,2]
[332123993,1720975840382,-500.0,0.00013772,2]
[332123994,1720975840392,-500.0,0.00013772,2]
[332123995,1720975840401,-500.0,0.00013772,2]
[332123996,1720975840411,-500.0,0.00013772,2]
[332123997,1720975840420,-500.0,0.00013772,2]
[332123998,1720975840430,-500.0,0.00013772,2]
[332123999,1720975840439,-500.0,0.00013772,2]
[332124000,1720975840449,-500.0,0.00013772,2]
[332124001,1720975840458,-500.0,0.00013772,2]
[332124002,1720975840467,-707.71,0.00013772,2]
[332124003,1720975840476,-500.0,0.00013772,2]
[332124004,1720975840486,-500.0,0.00013772,2]
[332124005,1720975840496,-500.0,0.00013772,2]
[332124007,1720975840509,-500.0,0.00013772,2]
[332124009,1720975840519,-500.0,0.00013772,2]
[332124011,1720975840528,-500.0,0.00013772,2]
[332124013,1720975840537,-530.22,0.00013772,2]
[332124015,1720975840548,-500.0,0.00013772,2]
[332124017,1720975840557,-500.0,0.00013772,2]
[332124019,1720975840566,-500.0,0.00013772,2]
[332124021,1720975840576,-500.0,0.00013772,2]
[332124023,1720975840586,-290.06496899,0.00013772,2]
[332124025,1720975840596,-500.0,0.00013772,2]
[332124027,1720975840605,-500.0,0.00013772,2]
[332124029,1720975840615,-500.0,0.00013772,2]
[332124031,1720975840627,-500.0,0.00013772,2]
[332124033,1720975840636,-500.0,0.00013772,2]
[332124035,1720975840645,-500.0,0.00013772,2]
[332124037,1720975840654,-500.0,0.00013772,2]
[332124039,1720975840664,-500.0,0.00013772,2]
[332124040,1720975840673,-500.0,0.00013772,2]
[332124042,1720975840682,-686.25,0.00013772,2]
[332124044,1720975840693,-500.0,0.00013772,2]
[332124046,1720975840702,-416.8,0.00013772,2]
[332124048,1720975840712,-500.0,0.00013772,2]
[332124050,1720975840721,-500.0,0.00013772,2]
[332124052,1720975840730,-500.0,0.00013772,2]
[332124054,1720975840739,-500.0,0.00013772,2]
[332124056,1720975840748,-821.66,0.00013772,2]
[332124057,1720975840758,-500.0,0.00013772,2]
[332124059,1720975840767,-500.0,0.00013772,2]
[332124061,1720975840776,-500.0,0.00013772,2]
[332124063,1720975840786,-500.0,0.00013772,2]
[332124065,1720975840795,-500.0,0.00013772,2]
[332124067,1720975840804,-378.91604622,0.00013772,2]
[332124069,1720975840814,-523.41,0.00013772,2]
[332124071,1720975840823,-500.0,0.00013772,2]
[332124073,1720975840832,-500.0,0.00013772,2]
[332124075,1720975840842,-500.0,0.00013772,2]
[332124077,1720975840851,-500.0,0.00013772,2]
[332124079,1720975840861,-500.0,0.00013772,2]
[332124080,1720975840872,-500.0,0.00013772,2]
[332124082,1720975840881,-500.0,0.00013772,2]
[332124084,1720975840891,-500.0,0.00013772,2]
[332124086,1720975840901,-500.0,0.00013772,2]
[332124088,1720975840911,-500.0,0.00013772,2]
[332124090,1720975840920,-500.0,0.00013772,2]
[332124092,1720975840930,-500.0,0.00013772,2]
[332124094,1720975840939,-547.55,0.00013772,2]
[332124096,1720975840949,-500.0,0.00013772,2]
[332124099,1720975840959,-1058.5,0.00013772,2]
[332124100,1720975840968,-695.95,0.00013772,2]
[332124102,1720975840977,-500.0,0.00013772,2]
[332124104,1720975840987,-269.60518932,0.00013772,2]
[332124106,1720975840996,-500.0,0.00013772,2]
[332124108,1720975841007,-500.0,0.00013772,2]
[332124110,1720975841016,-500.0,0.00013772,2]
[332124112,1720975841026,-500.0,0.00013772,2]
[332124114,1720975841036,-359.42,0.00013772,2]
[332124116,1720975841046,-500.0,0.00013772,2]
[332124118,1720975841055,-1219.71944,0.00013772,2]
[332124120,1720975841064,-500.0,0.00013772,2]
[332124122,1720975841073,-500.0,0.00013772,2]
[332124124,1720975841083,-500.0,0.00013772,2]
[332124126,1720975841092,-500.0,0.00013772,2]
[332124128,1720975841102,-500.0,0.00013772,2]
[332124130,1720975841111,-500.0,0.00013772,2]
[332124132,1720975841122,-200.0,0.00013775,2]
[332124134,1720975841132,-500.0,0.00013781,2]
[332124136,1720975841141,-500.0,0.00013781,2]
[332124138,1720975841150,-212.7,0.00013781,2]
[332124140,1720975841160,-500.0,0.00013781,2]
[332124142,1720975841169,-500.0,0.00013781,2]
[332124144,1720975841180,-500.0,0.00013781,2]
[332124146,1720975841189,-500.0,0.00013781,2]
[332124148,1720975841199,-500.0,0.00013781,2]
[332124150,1720975841208,-552.87,0.00013781,2]
[332124152,1720975841217,-500.0,0.00013781,2]
[332124154,1720975841227,-500.0,0.00013781,2]
[332124156,1720975841237,-500.0,0.00013781,2]
[332124158,1720975841246,-500.0,0.00013781,2]
[332124160,1720975841256,-627.14,0.00013781,2]
[332124162,1720975841265,-500.0,0.00013781,2]
[332124164,1720975841275,-598.82,0.00013781,2]
[332124166,1720975841284,-199.74,0.00013781,2]
[332124168,1720975841294,-500.0,0.00013781,2]
[332124169,1720975841303,-500.0,0.00013781,2]
[332124171,1720975841312,-500.0,0.00013781,2]
[332124173,1720975841322,-500.0,0.00013781,2]
[332124175,1720975841331,-500.0,0.00013781,2]
[332124177,1720975841340,-500.0,0.00013781,2]
[332124179,1720975841350,-500.0,0.00013781,2]
[332124180,1720975841360,-500.0,0.00013781,2]
[332124182,1720975841370,-500.0,0.00013781,2]
[332124183,1720975841380,-500.0,0.00013781,2]
[332124185,1720975841389,-500.0,0.00013781,2]
[332124187,1720975841399,-538.09,0.00013781,2]
[332124189,1720975841409,-500.0,0.00013781,2]
[332124191,1720975841419,-500.0,0.00013781,2]
[332124192,1720975841428,-500.0,0.00013781,2]
[332124194,1720975841438,-500.0,0.00013781,2]
[332124196,1720975841448,-500.0,0.00013781,2]
[332124198,1720975841459,-500.0,0.00013781,2]
[332124199,1720975841469,-500.0,0.00013781,2]
[332124201,1720975841479,-500.0,0.00013781,2]
[332124203,1720975841489,-500.0,0.00013781,2]
[332124205,1720975841503,-500.0,0.00013781,2]
[332124207,1720975841514,-500.0,0.00013781,2]
[332124208,1720975841523,-500.0,0.00013781,2]
[332124210,1720975841532,-500.0,0.00013781,2]
[332124212,1720975841543,-500.0,0.00013781,2]
[332124213,1720975841553,-500.0,0.00013781,2]
[332124215,1720975841564,-500.0,0.00013781,2]
[332124217,1720975841574,-500.0,0.00013781,2]
[332124219,1720975841587,-474.85552864,0.00013781,2]
[332124221,1720975841598,-500.0,0.00013781,2]
[332124223,1720975841607,-500.0,0.00013781,2]
[332124224,1720975841617,-500.0,0.00013781,2]
[332124226,1720975841629,-500.0,0.00013781,2]
[332124228,1720975841640,-500.0,0.00013781,2]
[332124230,1720975841651,-500.0,0.00013781,2]
[332124232,1720975841662,-529.97,0.00013781,2]
[332124234,1720975841674,-500.0,0.00013781,2]
[332124236,1720975841684,-500.0,0.00013781,2]
[332124238,1720975841695,-572.11,0.00013781,2]
[332124254,1720975841861,-500.0,0.00013781,2]
[332124256,1720975841873,-159.54081588,0.00013781,2]
[332124258,1720975841882,-500.0,0.00013781,2]
[332124260,1720975841892,-500.0,0.00013781,2]
[332124261,1720975841901,-850.93,0.00013781,2]
[332124263,1720975841911,-500.0,0.00013781,2]
[332124265,1720975841920,-500.0,0.00013781,2]
[332124267,1720975841933,-500.0,0.00013781,2]
[332124269,1720975841943,-154.25505174,0.00013781,2]
[332124271,1720975841953,-500.0,0.00013781,2]
[332124273,1720975841963,-500.0,0.00013781,2]
[332124275,1720975841972,-500.0,0.00013781,2]
[332124277,1720975841983,-500.0,0.00013781,2]
[332124278,1720975841993,-452.45845779,0.00013781,2]
[332124280,1720975842002,-587.62068604,0.00013781,2]
[332124282,1720975842011,-1577.47,0.00013781,2]
[332124284,1720975842020,-500.0,0.00013781,2]
[332124286,1720975842029,-500.0,0.00013781,2]
[332124288,1720975842039,-500.0,0.00013781,2]
[332124290,1720975842049,-500.0,0.00013781,2]
[332124292,1720975842060,-500.0,0.00013781,2]
[332124294,1720975842069,-500.0,0.00013781,2]
[332124296,1720975842078,-1240.37,0.00013781,2]
[332124297,1720975842087,-719.77,0.00013781,2]
[332124299,1720975842096,-500.0,0.00013781,2]
[332124301,1720975842106,-500.0,0.00013781,2]
[332124303,1720975842115,-820.23,0.00013781,2]
[332124305,1720975842127,-500.0,0.00013781,2]
[332124307,1720975842136,-500.0,0.00013781,2]
[332124309,1720975842145,-537.66,0.00013781,2]
[332124311,1720975842155,-500.0,0.00013781,2]
[332124313,1720975842164,-500.0,0.00013781,2]
[332124315,1720975842174,-4562.25,0.00013781,2]
[332124317,1720975842184,-500.0,0.00013781,2]
[332124318,1720975842193,-608.45,0.00013781,2]
[332124320,1720975842203,-500.0,0.00013781,2]
[332124322,1720975842212,-1149.74,0.00013781,2]
[332124324,1720975842221,-709.48,0.00013781,2]
[332124326,1720975842232,-500.0,0.00013781,2]
[332124328,1720975842242,-500.0,0.00013781,2]
[332124330,1720975842251,-500.0,0.00013781,2]
[332124332,1720975842261,-604.80465882,0.00013781,2]
[332124334,1720975842270,-772.15,0.00013781,2]
[332124336,1720975842279,-500.0,0.00013781,2]
[332124338,1720975842289,-500.0,0.00013781,2]
[332124339,1720975842298,-500.0,0.00013781,2]
[332124341,1720975842308,-500.0,0.00013781,2]
[332124343,1720975842317,-671.96,0.00013781,2]
[332124345,1720975842327,-500.0,0.00013781,2]
[332124347,1720975842336,-500.0,0.00013781,2]
[332124349,1720975842346,-500.0,0.00013781,2]
[332124351,1720975842355,-500.0,0.00013781,2]
[332124353,1720975842365,-500.0,0.00013781,2]
[332124356,1720975842376,-689.22,0.00013781,2]
[332124360,1720975842385,-500.0,0.00013781,2]
[332124362,1720975842395,-500.0,0.00013781,2]
[332124365,1720975842404,-616.06,0.00013781,2]
[332124368,1720975842414,-847.26,0.00013781,2]
[332124370,1720975842425,-500.0,0.00013781,2]
[332124372,1720975842435,-700.03,0.00013781,2]
[332124374,1720975842445,-500.0,0.00013781,2]
[332124376,1720975842455,-500.0,0.00013781,2]
[332124378,1720975842465,-500.0,0.00013781,2]
[332124380,1720975842477,-500.0,0.00013781,2]
[332124382,1720975842486,-500.0,0.00013781,2]
[332124384,1720975842496,-500.0,0.00013781,2]
[332124386,1720975842510,-718.83,0.00013781,2]
[332124388,1720975842519,-596.66,0.00013781,2]
[332124389,1720975842528,-500.0,0.00013781,2]
[332124390,1720975842538,-500.0,0.00013781,2]
[332124391,1720975842549,-500.0,0.00013781,2]
[332124392,1720975842558,-500.0,0.00013781,2]
[332124393,1720975842567,-537.24,0.00013781,2]
[332124394,1720975842580,-500.0,0.00013781,2]
[332124395,1720975842591,-500.0,0.00013781,2]
[332124396,1720975842601,-500.0,0.00013781,2]
[332124397,1720975842610,-500.0,0.00013781,2]
[332124398,1720975842620,-5941.38,0.00013781,2]
[332124399,1720975842630,-697.27,0.00013781,2]
[332124401,1720975842639,-500.0,0.00013781,2]
[332124402,1720975842649,-500.0,0.00013781,2]
[332124404,1720975842658,-500.0,0.00013781,2]
[332124406,1720975842669,-500.0,0.00013781,2]
[332124409,1720975842679,-500.0,0.00013781,2]
[332124411,1720975842691,-500.0,0.00013781,2]
[332124413,1720975842701,-500.0,0.00013781,2]
[332124415,1720975842711,-500.0,0.00013781,2]
[332124417,1720975842721,-500.0,0.00013781,2]
[332124419,1720975842730,-500.0,0.00013781,2]
[332124421,1720975842740,-500.0,0.00013781,2]
[332124423,1720975842751,-500.0,0.00013781,2]
[332124425,1720975842761,-500.0,0.00013781,2]
[332124427,1720975842770,-500.0,0.00013781,2]
[332124429,1720975842781,-4129.07,0.00013781,2]
[332124431,1720975842793,-500.0,0.00013781,2]
[332124433,1720975842802,-500.0,0.00013781,2]
[332124436,1720975842813,-500.0,0.00013781,2]
[332124438,1720975842822,-500.0,0.00013781,2]
[332124440,1720975842833,-500.0,0.00013781,2]
[332124442,1720975842842,-500.0,0.00013781,2]
[332124444,1720975842853,-397.22402572,0.00013781,2]
[332124446,1720975842864,-500.0,0.00013781,2]
[332124448,1720975842874,-500.0,0.00013781,2]
[332124450,1720975842884,-500.0,0.00013781,2]
[332124452,1720975842894,-500.0,0.00013781,2]
[332124454,1720975842904,-500.0,0.00013781,2]
[332124457,1720975842914,-576.8,0.00013781,2]
[332124459,1720975842925,-500.0,0.00013781,2]
[332124461,1720975842934,-500.0,0.00013781,2]